fUSD/lending_fUSD_20250107
["ID","MTS","AMOUNT","RATE_DAILY","PERIOD"]
[348043598,1736274632351,-500.0,9.316e-05,2]
[348043599,1736274632364,-500.0,9.316e-05,2]
[348043600,1736274632373,-500.0,9.316e-05,2]
[348043601,1736274632382,-500.0,9.316e-05,2]
[348043602,1736274632391,-500.0,9.316e-05,2]
[348043603,1736274632401,-500.0,9.316e-05,2]
[348043604,1736274632410,-1940.98114777,9.316e-05,2]
[348043605,1736274632422,-1100.0,9.316e-05,2]
[348043606,1736274632433,-1105.90986062,9.316e-05,2]
[348043607,1736274632444,-1022.84587214,9.316e-05,2]
[348043608,1736274632453,-500.0,9.317e-05,2]
[348043609,1736274632462,-500.0,9.317e-05,2]
[348043610,1736274632471,-500.0,9.317e-05,2]
[348043611,1736274632481,-500.0,9.317e-05,2]
[348043612,1736274632490,-500.0,9.317e-05,2]
[348043613,1736274632499,-500.0,9.317e-05,2]
[348043614,1736274632509,-1876.04,9.317e-05,2]
[348043615,1736274632518,-500.0,9.317e-05,2]
[348043616,1736274632527,-801.08,9.317e-05,2]
[348043617,1736274632536,-654.7,9.318e-05,2]
[348043618,1736274632545,-1536.01,9.318e-05,2]
[348043619,1736274632555,-898.73,9.318e-05,2]
[348043620,1736274632565,-150.0,9.333e-05,2]
[348043621,1736274632575,-150.0,9.364e-05,2]
[348043622,1736274632584,-946.6660692,9.453e-05,2]
[348043623,1736274632596,-4223.07081128,9.453e-05,2]
[348043624,1736274632607,-150.0,9.455e-05,2]
[348043625,1736274632617,-1000.0,9.491e-05,2]
[348043626,1736274632626,-928.09,9.491e-05,2]
[348043627,1736274632636,-522.48,9.491e-05,2]
[348043628,1736274632645,-1802.1,9.491e-05,2]
[348043629,1736274632654,-1330.59,9.491e-05,2]
[348043630,1736274632663,-150.0,9.5e-05,2]
[348043631,1736274632673,-150.0,9.545e-05,2]
[348043632,1736274632683,-262.36,9.562e-05,2]
[348043633,1736274632692,-1182.62,9.589e-05,2]
[348043634,1736274632702,-5169.73688048,9.59e-05,2]
[348043635,1736274632712,-299.45230824,9.59e-05,2]
[348043636,1736274632727,-200.54769176,9.59e-05,2]
[348043637,1736274632737,-500.0,9.59e-05,2]
[348043638,1736274632746,-500.0,9.59e-05,2]
[348043639,1736274632756,-500.0,9.59e-05,2]
[348043640,1736274632766,-500.0,9.59e-05,2]
[348043641,1736274632777,-500.0,9.59e-05,2]
[348043642,1736274632787,-500.0,9.59e-05,2]
[348043643,1736274632798,-500.0,9.59e-05,2]
[348043644,1736274632807,-500.0,9.59e-05,2]
[348043645,1736274632816,-500.0,9.59e-05,2]
[348043646,1736274632826,-323.01985523,9.59e-05,2]
[348043647,1736274632841,-176.98014477,9.59e-05,2]
[348043648,1736274632851,-347.73998492,9.59e-05,2]
[348043649,1736274632865,-152.26001508,9.59e-05,2]
[348043650,1736274632875,-500.0,9.59e-05,2]
[348043651,1736274632884,-500.0,9.59e-05,2]
[348043652,1736274632893,-500.0,9.59e-05,2]
[348043653,1736274632903,-500.0,9.59e-05,2]
[348043654,1736274632912,-500.0,9.59e-05,2]
[348043655,1736274632922,-138.99764173,9.59e-05,2]
[348043656,1736274632934,-361.00235827,9.59e-05,2]
[348043657,1736274632943,-500.0,9.59e-05,2]
[348043658,1736274632953,-500.0,9.591e-05,2]
[348043659,1736274632962,-500.0,9.591e-05,2]
[348043660,1736274632972,-685.09,9.591e-05,2]
[348043661,1736274632981,-576.82,9.591e-05,2]
[348043662,1736274632991,-836.65,9.591e-05,2]
[348043663,1736274633001,-724.75,9.591e-05,2]
[348043664,1736274633012,-1641.33,9.591e-05,2]
[348043665,1736274633021,-552.49,9.591e-05,2]
[348043666,1736274633032,-901.97,9.591e-05,2]
[348043667,1736274633043,-555.29,9.591e-05,2]
[348043668,1736274633053,-1158.95,9.591e-05,2]
[348043669,1736274633063,-551.36,9.591e-05,2]
[348043670,1736274633074,-708.32,9.591e-05,2]
[348043671,1736274633084,-654.73,9.591e-05,2]
[348043672,1736274633095,-2400.62,9.591e-05,2]
[348043673,1736274633104,-551.22,9.591e-05,2]
[348043674,1736274633120,-500.0,9.591e-05,2]
[348043675,1736274633131,-519.52,9.591e-05,2]
[348043676,1736274633142,-500.0,9.591e-05,2]
[348043677,1736274633152,-633.23,9.591e-05,2]
[348043678,1736274633163,-500.0,9.591e-05,2]
[348043679,1736274633173,-500.0,9.591e-05,2]
[348043680,1736274633407,-500.0,9.591e-05,2]
[348043681,1736274633418,-524.66,9.591e-05,2]
[348043682,1736274633429,-659.08,9.591e-05,2]
[348043683,1736274633439,-557.12,9.591e-05,2]
[348043684,1736274633450,-500.0,9.591e-05,2]
[348043685,1736274633460,-1320.69,9.591e-05,2]
[348043686,1736274633471,-3480.88,9.591e-05,2]
[348043687,1736274633482,-500.0,9.591e-05,2]
[348043688,1736274633493,-1876.04,9.591e-05,2]
[348043689,1736274633503,-551.43,9.591e-05,2]
[348043690,1736274633514,-500.0,9.591e-05,2]
[348043691,1736274633525,-801.08,9.591e-05,2]
[348043692,1736274633535,-654.7,9.592e-05,2]
[348043693,1736274633545,-1536.01,9.592e-05,2]
[348043694,1736274633556,-898.73,9.592e-05,2]
[348043695,1736274633567,-150.0,9.636e-05,2]
[348043696,1736274633577,-150.0,9.667e-05,2]
[348043697,1736274633587,-1000.0,9.677e-05,2]
[348043698,1736274633597,-5169.73688048,9.726e-05,2]
[348043699,1736274633607,-150.0,9.727e-05,2]
[348043700,1736274633622,-150.0,9.75e-05,2]
[348043701,1736274633632,-1036.7856,9.763e-05,2]
[348043702,1736274633642,-1653.0029,9.764e-05,2]
[348043703,1736274633652,-5000.0,9.765e-05,2]
[348043704,1736274633662,-1000.0,9.765e-05,2]
[348043705,1736274633672,-928.09,9.765e-05,2]
[348043706,1736274633683,-522.48,9.765e-05,2]
[348043707,1736274633693,-1802.1,9.765e-05,2]
[348043708,1736274633703,-1330.59,9.765e-05,2]
[348043709,1736274633713,-150.0,9.818e-05,2]
[348043710,1736274633726,-500.0,9.863e-05,2]
[348043711,1736274633735,-500.0,9.863e-05,2]
[348043712,1736274633744,-500.0,9.863e-05,2]
[348043713,1736274633754,-500.0,9.863e-05,2]
[348043714,1736274633765,-500.0,9.863e-05,2]
[348043715,1736274633774,-500.0,9.863e-05,2]
[348043716,1736274633784,-500.0,9.863e-05,2]
[348043717,1736274633794,-500.0,9.863e-05,2]
[348043718,1736274633803,-500.0,9.863e-05,2]
[348043719,1736274633813,-500.0,9.863e-05,2]
[348043720,1736274633823,-500.0,9.863e-05,2]
[348043721,1736274633832,-500.0,9.863e-05,2]
[348043722,1736274633843,-500.0,9.863e-05,2]
[348043723,1736274633852,-500.0,9.863e-05,2]
[348043724,1736274633865,-500.0,9.863e-05,2]
[348043725,1736274633875,-500.0,9.863e-05,2]
[348043726,1736274633885,-500.0,9.863e-05,2]
[348043727,1736274633894,-500.0,9.863e-05,2]
[348043728,1736274633904,-509.92,9.863e-05,2]
[348043729,1736274633914,-500.0,9.863e-05,2]
[348043730,1736274633924,-558.07,9.863e-05,2]
[348043731,1736274633934,-500.0,9.863e-05,2]
[348043732,1736274633943,-500.0,9.863e-05,2]
[348043733,1736274633953,-500.0,9.863e-05,2]
[348043734,1736274633971,-500.0,9.863e-05,2]
[348043735,1736274633984,-500.0,9.863e-05,2]
[348043736,1736274633995,-500.0,9.863e-05,2]
[348043737,1736274634005,-500.0,9.863e-05,2]
[348043738,1736274634015,-500.25092334,9.863e-05,2]
[348043739,1736274634026,-289.74907482,9.863e-05,2]
[348043740,1736274634036,-500.0,9.863e-05,2]
[348043741,1736274634047,-500.0,9.863e-05,2]
[348043742,1736274634057,-500.0,9.863e-05,2]
[348043743,1736274634068,-500.0,9.863e-05,2]
[348043744,1736274634078,-500.0,9.863e-05,2]
[348043745,1736274634088,-156.91049976,9.863e-05,2]
[348043746,1736274634098,-500.0,9.863e-05,2]
[348043747,1736274634111,-500.0,9.863e-05,2]
[348043748,1736274634122,-155.32912995,9.863e-05,2]
[348043749,1736274634132,-500.0,9.863e-05,2]
[348043750,1736274634142,-500.0,9.863e-05,2]
[348043751,1736274634152,-500.0,9.863e-05,2]
[348043752,1736274634162,-500.0,9.863e-05,2]
[348043753,1736274634173,-500.0,9.863e-05,2]
[348043754,1736274634183,-500.0,9.863e-05,2]
[348043755,1736274634194,-500.0,9.863e-05,2]
[348043756,1736274634203,-500.0,9.863e-05,2]
[348043757,1736274634213,-500.0,9.863e-05,2]
[348043758,1736274634223,-500.0,9.863e-05,2]
[348043759,1736274634234,-500.0,9.863e-05,2]
[348043760,1736274634243,-500.0,9.863e-05,2]
[348043761,1736274634253,-500.0,9.863e-05,2]
[348043762,1736274634263,-500.0,9.863e-05,2]
[348043763,1736274634273,-500.0,9.863e-05,2]
[348043764,1736274634283,-500.0,9.863e-05,2]
[348043765,1736274634293,-500.0,9.863e-05,2]
[348043766,1736274634304,-500.0,9.863e-05,2]
[348043767,1736274634313,-500.0,9.863e-05,2]
[348043768,1736274634323,-500.0,9.863e-05,2]
[348043769,1736274634333,-500.0,9.863e-05,2]
[348043770,1736274634343,-500.0,9.863e-05,2]
[348043771,1736274634353,-500.0,9.863e-05,2]
[348043772,1736274634365,-500.0,9.863e-05,2]
[348043773,1736274634375,-500.0,9.863e-05,2]
[348043774,1736274634386,-500.0,9.863e-05,2]
[348043775,1736274634396,-500.0,9.863e-05,2]
[348043776,1736274634406,-500.0,9.863e-05,2]
[348043777,1736274634415,-500.0,9.863e-05,2]
[348043778,1736274634425,-500.0,9.863e-05,2]
[348043779,1736274634435,-500.0,9.863e-05,2]
[348043780,1736274634445,-500.0,9.863e-05,2]
[348043781,1736274634455,-500.0,9.863e-05,2]
[348043782,1736274634464,-1697.29,9.863e-05,2]
[348043783,1736274634475,-500.0,9.863e-05,2]
[348043784,1736274634484,-500.0,9.863e-05,2]
[348043785,1736274634494,-500.0,9.863e-05,2]
[348043786,1736274634503,-500.0,9.863e-05,2]
[348043787,1736274634513,-266.569265,9.863e-05,2]
[348043788,1736274634525,-500.0,9.863e-05,2]
[348043789,1736274634534,-1049.32,9.863e-05,2]
[348043790,1736274634543,-500.0,9.863e-05,2]
[348043791,1736274634553,-1630.2,9.863e-05,2]
[348043792,1736274634563,-500.0,9.863e-05,2]
[348043793,1736274634573,-500.0,9.863e-05,2]
[348043794,1736274634583,-1025.23,9.863e-05,2]
[348043795,1736274634592,-500.0,9.863e-05,2]
[348043796,1736274634601,-500.0,9.863e-05,2]
[348043797,1736274634614,-500.0,9.863e-05,2]
[348043798,1736274634624,-500.0,9.863e-05,2]
[348043799,1736274634633,-500.0,9.863e-05,2]
[348043800,1736274634643,-151.98,9.863e-05,2]
[348043801,1736274634652,-500.0,9.863e-05,2]
[348043802,1736274634662,-500.0,9.863e-05,2]
[348043803,1736274634671,-500.0,9.863e-05,2]
[348043804,1736274634680,-500.0,9.863e-05,2]
[348043805,1736274634690,-500.0,9.863e-05,2]
[348043806,1736274634699,-590.10443699,9.863e-05,2]
[348043807,1736274634709,-500.0,9.863e-05,2]
[348043808,1736274634718,-500.0,9.863e-05,2]
[348043809,1736274634731,-504.1,9.863e-05,2]
[348043810,1736274634740,-504.1,9.863e-05,2]
[348043811,1736274634750,-500.0,9.863e-05,2]
[348043812,1736274634759,-292.10392499,9.863e-05,2]
[348043813,1736274634769,-500.0,9.863e-05,2]
[348043814,1736274634780,-500.0,9.863e-05,2]
[348043815,1736274634789,-500.0,9.863e-05,2]
[348043816,1736274634798,-500.0,9.863e-05,2]
[348043817,1736274634808,-1689.12,9.863e-05,2]
[348043818,1736274634819,-279.29568627,9.863e-05,2]
[348043819,1736274635103,-220.70431373,9.863e-05,2]
[348043820,1736274635115,-432.51568627,9.863e-05,2]
[348043821,1736274635127,-67.48431373,9.863e-05,2]
[348043822,1736274635136,-277.69168627,9.863e-05,2]
[348043823,1736274635147,-222.30831373,9.863e-05,2]
[348043824,1736274635157,-500.0,9.863e-05,2]
[348043825,1736274635167,-500.0,9.863e-05,2]
[348043826,1736274635177,-500.0,9.863e-05,2]
[348043827,1736274635187,-3743.95214899,9.863e-05,2]
[348043830,1736274637624,-628.09064684,9.863e-05,2]
[348043831,1736274637635,-797.69408465,9.863e-05,2]
[348043832,1736274637644,-205.80591535,9.864e-05,2]
[348043833,1736274637655,-294.19408465,9.864e-05,2]
[348043834,1736274637664,-231.25591535,9.864e-05,2]
[348043835,1736274637735,-268.74408465,9.864e-05,2]
[348043836,1736274637744,-430.05592549,9.864e-05,2]
[348043837,1736274637755,-69.94407451,9.864e-05,2]
[348043838,1736274637765,-500.0,9.864e-05,2]
[348043839,1736274637775,-500.0,9.864e-05,2]
[348043840,1736274637784,-500.0,9.864e-05,2]
[348043841,1736274637793,-500.0,9.864e-05,2]
[348043842,1736274637803,-283.90277679,9.864e-05,2]
[348043843,1736274637815,-216.09722321,9.864e-05,2]
[348043844,1736274637824,-500.0,9.864e-05,2]
[348043845,1736274637833,-500.0,9.864e-05,2]
[348043846,1736274637843,-500.0,9.864e-05,2]
[348043847,1736274637853,-500.0,9.864e-05,2]
[348043848,1736274637862,-500.0,9.864e-05,2]
[348043849,1736274637872,-500.0,9.864e-05,2]
[348043850,1736274637881,-500.0,9.864e-05,2]
[348043851,1736274637891,-500.0,9.864e-05,2]
[348043852,1736274637900,-500.0,9.864e-05,2]
[348043853,1736274637909,-528.18,9.864e-05,2]
[348043854,1736274637918,-793.71,9.864e-05,2]
[348043855,1736274637927,-1795.75,9.864e-05,2]
[348043856,1736274637936,-500.0,9.864e-05,2]
[348043857,1736274637946,-526.76,9.864e-05,2]
[348043858,1736274637956,-500.0,9.864e-05,2]
[348043859,1736274637965,-500.0,9.864e-05,2]
[348043860,1736274637975,-707.33,9.864e-05,2]
[348043861,1736274637984,-500.0,9.864e-05,2]
[348043862,1736274637993,-612.83,9.864e-05,2]
[348043863,1736274638003,-1235.56,9.864e-05,2]
[348043864,1736274638014,-579.84,9.864e-05,2]
[348043865,1736274638023,-647.43,9.864e-05,2]
[348043866,1736274638032,-500.0,9.864e-05,2]
[348043867,1736274638041,-1049.32,9.864e-05,2]
[348043868,1736274638051,-504.24,9.864e-05,2]
[348043869,1736274638060,-500.0,9.864e-05,2]
[348043870,1736274638070,-500.0,9.864e-05,2]
[348043871,1736274638079,-533.9,9.864e-05,2]
[348043872,1736274638088,-1234.1,9.864e-05,2]
[348043873,1736274638098,-734.57,9.864e-05,2]
[348043874,1736274638107,-521.87,9.864e-05,2]
[348043875,1736274638118,-519.75,9.864e-05,2]
[348043876,1736274638127,-742.71,9.864e-05,2]
[348043877,1736274638137,-500.0,9.864e-05,2]
[348043878,1736274638147,-500.0,9.864e-05,2]
[348043879,1736274638156,-500.0,9.864e-05,2]
[348043880,1736274638166,-500.0,9.864e-05,2]
[348043881,1736274638175,-500.0,9.864e-05,2]
[348043882,1736274638185,-190.798698,9.864e-05,2]
[348043883,1736274638195,-500.0,9.864e-05,2]
[348043884,1736274638204,-500.0,9.864e-05,2]
[348043885,1736274638213,-713.73,9.864e-05,2]
[348043886,1736274638222,-666.08,9.864e-05,2]
[348043887,1736274638231,-163.627323,9.864e-05,2]
[348043888,1736274638241,-500.0,9.864e-05,2]
[348043889,1736274638250,-500.0,9.864e-05,2]
[348043890,1736274638260,-500.0,9.865e-05,2]
[348043891,1736274638269,-500.0,9.865e-05,2]
[348043892,1736274638278,-685.09,9.865e-05,2]
[348043893,1736274638287,-576.82,9.865e-05,2]
[348043894,1736274638296,-836.65,9.865e-05,2]
[348043895,1736274638306,-724.75,9.865e-05,2]
[348043896,1736274638315,-1641.33,9.865e-05,2]
[348043897,1736274638324,-901.97,9.865e-05,2]
[348043898,1736274638333,-1158.95,9.865e-05,2]
[348043899,1736274638343,-551.36,9.865e-05,2]
[348043900,1736274638352,-708.32,9.865e-05,2]
[348043901,1736274638361,-654.73,9.865e-05,2]
[348043902,1736274638373,-2400.62,9.865e-05,2]
[348043903,1736274638383,-551.22,9.865e-05,2]
[348043904,1736274638392,-500.0,9.865e-05,2]
[348043905,1736274638401,-519.52,9.865e-05,2]
[348043906,1736274638410,-500.0,9.865e-05,2]
[348043907,1736274638419,-633.23,9.865e-05,2]
[348043908,1736274638428,-500.0,9.865e-05,2]
[348043909,1736274638438,-500.0,9.865e-05,2]
[348043910,1736274638447,-500.0,9.865e-05,2]
[348043911,1736274638457,-524.66,9.865e-05,2]
[348043912,1736274638466,-659.08,9.865e-05,2]
[348043913,1736274638475,-557.12,9.865e-05,2]
[348043914,1736274638484,-500.0,9.865e-05,2]
[348043915,1736274638493,-1320.69,9.865e-05,2]
[348043916,1736274638503,-3480.88,9.865e-05,2]
[348043917,1736274638512,-500.0,9.865e-05,2]
[348043918,1736274638521,-1876.04,9.865e-05,2]
[348043919,1736274638530,-551.43,9.865e-05,2]
[348043920,1736274638539,-500.0,9.865e-05,2]
[348043921,1736274638549,-801.08,9.865e-05,2]
[348043922,1736274638558,-654.7,9.866e-05,2]
[348043923,1736274638567,-1536.01,9.866e-05,2]
[348043924,1736274638577,-898.73,9.866e-05,2]
[348043925,1736274638586,-150.0,9.909e-05,2]
[348043926,1736274638595,-11869.0,9.973e-05,2]
[348043927,1736274638604,-1575.0,9.973e-05,2]
[348043928,1736274638616,-161.62122653,9.973e-05,2]
[348043929,1736274638626,-500.0,9.973e-05,2]
[348043930,1736274638635,-4091.2337349,9.988e-05,2]
[348043931,1736274638645,-5235.98610588,9.999e-05,2]
[348043932,1736274638654,-176.21,0.0001,2]
[348043933,1736274638664,-9573201.86351157,0.0001,4]
[348043934,1736274638718,-346.51204165,0.0001,4]
[348043935,1736274638733,-966.00000034,0.0001,4]
[348043936,1736274638745,-706.10326874,0.0001,4]
[348043937,1736274638756,-401375.71728106,0.0001,4]
[348043938,1736274638769,-1815.97474894,0.0001,4]
[348043939,1736274638791,-14599.8,0.0001,4]
[348043940,1736274638803,-40830.39659748,0.0001,4]
[348043941,1736274638814,-845.88342142,0.0001,4]
[348043942,1736274639640,-327.635,9.863e-05,2]
[348043943,1736274639652,-172.365,9.863e-05,2]
[348043944,1736274639661,-527.29,9.864e-05,2]
[348043945,1736274639671,-7636.75009996,0.0001,4]
[348043946,1736274639881,-1460.985,0.0001,4]
[348043947,1736274639895,-3003.0,0.0001,4]
[348043948,1736274639914,-17266.11313903,0.0001,4]
[348043949,1736274639926,-1431.9734557,0.0001,4]
[348043950,1736274639937,-10049.0,0.0001,4]
[348043953,1736274639955,-3030.07900557,0.0001,4]
[348043954,1736274639967,-3535.69999998,0.0001,4]
[348043965,1736274642701,-1000.0,9.044e-05,2]
[348043966,1736274642710,-500.0,9.863e-05,2]
[348043967,1736274642720,-500.0,9.864e-05,2]
[348043968,1736274642732,-500.0,9.864e-05,2]
[348043969,1736274642741,-597.04856955,0.0001,4]
[348043970,1736274642753,-6846.49000001,0.0001,4]
[348043971,1736274642764,-3313.2047406,0.0001,4]
[348043972,1736274642776,-3584.80000002,0.0001,4]
[348043973,1736274642788,-1408.91188919,0.0001,4]
[348043974,1736274642801,-5082.40909645,0.0001,4]
[348043975,1736274642824,-1170.0,0.0001,4]
[348043976,1736274642883,-1395.71527919,0.0001,4]
[348043977,1736274642895,-3992.28420436,0.0001,4]
[348044018,1736274645657,-311.0496,9.318e-05,2]
[348044019,1736274645683,-688.9504,9.318e-05,2]
[348044020,1736274645693,-1000.0,9.592e-05,2]
[348044021,1736274645702,-500.0,9.863e-05,2]
[348044022,1736274645711,-255.462213,9.864e-05,2]
[348044023,1736274645722,-500.0,9.864e-05,2]
[348044024,1736274645733,-500.0,9.973e-05,2]
[348044025,1736274645743,-15387.1239229,0.0001,4]
[348044026,1736274645796,-6991.20000002,0.0001,4]
[348044027,1736274645824,-256.48,0.0001,4]
[348044028,1736274645851,-14626.8,0.0001,4]
[348044029,1736274645879,-7223.9999,0.0001,4]
[348044030,1736274645890,-5332.0,0.0001,4]
[348044031,1736274645902,-316213.58394599,0.0001,4]
[348044032,1736274645914,-350.0,0.0001,4]
[348044033,1736274645926,-2368.97429585,0.0001,4]
[348044035,1736274646027,-118676.3799999,0.0001,4]
[348044053,1736274820057,766.35826371,8.5e-05,2]
[348044054,1736274874401,1000.0,0.0002,120]
[348044055,1736274875930,1000.0,0.0002,120]
[348044056,1736274877198,1000.0,0.0002,120]
[348044057,1736274883965,1000.0,0.0002,120]
[348044058,1736274903300,162.0,8.5e-05,30]
[348044059,1736274903606,162.0,9.85e-05,30]
[348044060,1736274903995,159.0,8.5e-05,30]
[348044061,1736274904036,162.0,0.000112,30]
[348044062,1736274904187,159.0,0.00011875,30]
[348044063,1736274971623,173.0,8.5e-05,30]
[348044064,1736274971697,173.0,0.00011875,30]
[348044067,1736275203496,162.0,8.5e-05,30]
[348044068,1736275203544,159.0,8.5e-05,30]
[348044069,1736275203826,162.0,0.00010429,30]
[348044070,1736275204447,1188.34,8.219e-05,2]
[348044073,1736275503670,163.0,8.5e-05,30]
[348044074,1736275503934,160.0,8.5e-05,30]
[348044075,1736275503985,163.0,0.000112,30]
[348044076,1736275803481,163.0,8.5e-05,30]
[348044077,1736275803923,160.32162058,8.5e-05,30]
[348044081,1736275831985,-250.0,8.634e-05,2]
[348044082,1736275831995,-70.46274028,8.69e-05,2]
[348044083,1736275832007,-5970.97119162,8.69e-05,2]
[348044084,1736275832017,-250.0,8.69e-05,2]
[348044085,1736275832026,-1511.26,8.722e-05,2]
[348044086,1736275832036,-693.68292133,8.784e-05,2]
[348044087,1736275832046,-4321.20527999,8.784e-05,2]
[348044088,1736275832058,-15105.40987802,8.784e-05,2]
[348044089,1736275832067,-1000.0,8.785e-05,2]
[348044090,1736275832077,-185.68,8.821e-05,2]
[348044091,1736275832091,-150.0,9e-05,2]
[348044092,1736275832100,-150.0,9e-05,2]
[348044093,1736275832110,-150.0,9e-05,2]
[348044094,1736275832119,-900.0,9.1e-05,3]
[348044095,1736275832130,-150.0,9.111e-05,2]
[348044096,1736275832139,-693.68292131,9.188e-05,2]
[348044097,1736275832149,-1900.0,9.2e-05,3]
[348044098,1736275832161,-150.0,9.222e-05,2]
[348044099,1736275832170,-150.0,9.25e-05,2]
[348044100,1736275832179,-150.0,9.25e-05,2]
[348044101,1736275832189,-212.0,9.26e-05,2]
[348044102,1736275832199,-2900.0,9.3e-05,3]
[348044103,1736275832208,-943.17,9.317e-05,2]
[348044104,1736275832218,-166.98,9.326e-05,2]
[348044105,1736275832227,-150.0,9.333e-05,2]
[348044106,1736275832237,-3800.0,9.4e-05,3]
[348044107,1736275832247,-150.0,9.444e-05,2]
[348044108,1736275832257,-150.0,9.5e-05,2]
[348044109,1736275832266,-150.0,9.5e-05,2]
[348044110,1736275832275,-4800.0,9.5e-05,3]
[348044111,1736275832285,-150.0,9.556e-05,2]
[348044112,1736275832296,-861.62281343,9.556e-05,2]
[348044113,1736275832306,-500.0,9.591e-05,2]
[348044114,1736275832316,-500.0,9.591e-05,2]
[348044115,1736275832327,-1726.28,9.591e-05,2]
[348044116,1736275832336,-500.0,9.591e-05,2]
[348044117,1736275832346,-688.4,9.591e-05,2]
[348044118,1736275832356,-769.78,9.591e-05,2]
[348044119,1736275832365,-628.92,9.591e-05,2]
[348044120,1736275832375,-1370.98,9.591e-05,2]
[348044121,1736275832385,-1000.0,9.591e-05,2]
[348044122,1736275832394,-895.41,9.591e-05,2]
[348044123,1736275832404,-563.21,9.591e-05,2]
[348044124,1736275832414,-1778.97,9.591e-05,2]
[348044125,1736275832424,-1309.07,9.591e-05,2]
[348044126,1736275832433,-693.68292131,9.591e-05,2]
[348044127,1736275832443,-900.0,9.6e-05,3]
[348044128,1736275832455,-861.62281341,9.645e-05,2]
[348044129,1736275832466,-150.0,9.667e-05,2]
[348044130,1736275832476,-900.0,9.7e-05,3]
[348044131,1736275832488,-861.62281341,9.734e-05,2]
[348044132,1736275832499,-150.0,9.75e-05,2]
[348044134,1736275832509,-150.0,9.75e-05,2]
[348044135,1736275832519,-1083.9231,9.764e-05,2]
[348044136,1736275832529,-5572.5688,9.764e-05,2]
[348044137,1736275832538,-150.0,9.778e-05,2]
[348044138,1736275832547,-900.0,9.8e-05,3]
[348044139,1736275832557,-861.62281341,9.822e-05,2]
[348044140,1736275832567,-728.16,9.863e-05,2]
[348044141,1736275832577,-1852.17,9.863e-05,2]
[348044142,1736275832586,-665.77,9.863e-05,2]
[348044143,1736275832595,-887.84,9.863e-05,2]
[348044145,1736275832605,-803.09,9.863e-05,2]
[348044148,1736275832615,-1495.28,9.863e-05,2]
[348044150,1736275832625,-781.15,9.863e-05,2]
[348044152,1736275832634,-500.0,9.864e-05,2]
[348044154,1736275832643,-500.0,9.864e-05,2]
[348044156,1736275832652,-500.0,9.864e-05,2]
[348044158,1736275832661,-500.0,9.864e-05,2]
[348044160,1736275832671,-500.0,9.864e-05,2]
[348044162,1736275832680,-500.0,9.864e-05,2]
[348044164,1736275832689,-500.0,9.864e-05,2]
[348044167,1736275832700,-500.0,9.864e-05,2]
[348044169,1736275832710,-452.55,9.864e-05,2]
[348044172,1736275832719,-500.0,9.864e-05,2]
[348044175,1736275832728,-500.0,9.864e-05,2]
[348044177,1736275832738,-500.0,9.864e-05,2]
[348044180,1736275832747,-500.0,9.864e-05,2]
[348044183,1736275832756,-500.0,9.864e-05,2]
[348044186,1736275832765,-500.0,9.864e-05,2]
[348044188,1736275832775,-500.0,9.864e-05,2]
[348044190,1736275832784,-500.0,9.864e-05,2]
[348044192,1736275832793,-500.0,9.864e-05,2]
[348044193,1736275832802,-500.0,9.864e-05,2]
[348044195,1736275832812,-500.0,9.864e-05,2]
[348044196,1736275832821,-500.0,9.864e-05,2]
[348044197,1736275832830,-500.0,9.864e-05,2]
[348044198,1736275832839,-403.50815141,9.864e-05,2]
[348044199,1736275832848,-500.0,9.864e-05,2]
[348044200,1736275832857,-500.0,9.864e-05,2]
[348044201,1736275832867,-500.0,9.864e-05,2]
[348044202,1736275832876,-500.0,9.864e-05,2]
[348044203,1736275832885,-500.0,9.864e-05,2]
[348044204,1736275832895,-500.0,9.864e-05,2]
[348044205,1736275832904,-500.0,9.864e-05,2]
[348044206,1736275832914,-500.0,9.864e-05,2]